[Event "Betsys MČR v online bleskovém šachu 2021"]
[Site "Chess.com"]
[Date "2021.04.17"]
[Round "10"]
[White "misa2009"]
[Black "alenka777"]
[Result "1-0"]
[WhiteElo "1516"]
[BlackElo "1282"]
[TimeControl "180+1"]
[EndTime "10:41:23 PDT"]
[Termination "Uživatel misa2009 zvítězil na čas"]

1. e4 {[%clk 0:03:00.9]} 1... e5 {[%clk 0:02:59]} 2. d4 {[%clk 0:03:00.8]} 2...
exd4 {[%clk 0:02:55.7]} 3. Bc4 {[%clk 0:03:00.6]} 3... Nf6 {[%clk 0:02:54.1]} 4.
Bg5 {[%clk 0:02:58.5]} 4... Be7 {[%clk 0:02:51.5]} 5. c3 {[%clk 0:02:55.5]} 5...
Nxe4 {[%clk 0:02:50.1]} 6. Bxe7 {[%clk 0:02:49.4]} 6... Qxe7 {[%clk 0:02:49.3]}
7. Ne2 {[%clk 0:02:43.8]} 7... O-O {[%clk 0:02:47.1]} 8. O-O {[%clk 0:02:42.6]}
8... dxc3 {[%clk 0:02:43.7]} 9. Nbxc3 {[%clk 0:02:42.1]} 9... Nxc3 {[%clk
0:02:42.4]} 10. Nxc3 {[%clk 0:02:42]} 10... Qh4 {[%clk 0:02:41]} 11. Qf3 {[%clk
0:02:36.3]} 11... Qxc4 {[%clk 0:02:39]} 12. Qg3 {[%clk 0:02:30.2]} 12... d6
{[%clk 0:02:35.6]} 13. Rfe1 {[%clk 0:02:28.5]} 13... Nc6 {[%clk 0:02:31.3]} 14.
Ne4 {[%clk 0:02:26.9]} 14... Qd4 {[%clk 0:02:00.8]} 15. b3 {[%clk 0:02:19.8]}
15... Ne5 {[%clk 0:01:58.9]} 16. Rad1 {[%clk 0:02:12.1]} 16... Qb2 {[%clk
0:01:53.2]} 17. f4 {[%clk 0:02:03.3]} 17... Nc6 {[%clk 0:01:43]} 18. Qg5 {[%clk
0:01:53.3]} 18... h6 {[%clk 0:01:37.9]} 19. Qh5 {[%clk 0:01:44.2]} 19... Bd7
{[%clk 0:01:10.1]} 20. f5 {[%clk 0:01:42.7]} 20... Qe5 {[%clk 0:01:00.1]} 21.
Ng3 {[%clk 0:01:25.7]} 21... Qc5+ {[%clk 0:00:56.3]} 22. Kh1 {[%clk 0:01:19]}
22... Ne5 {[%clk 0:00:55]} 23. Ne4 {[%clk 0:01:13.9]} 23... Qc2 {[%clk
0:00:45.4]} 24. f6 {[%clk 0:01:10.1]} 24... Ng6 {[%clk 0:00:31.2]} 25. fxg7
{[%clk 0:01:04.5]} 25... Kxg7 {[%clk 0:00:30.5]} 26. Qf3 {[%clk 0:00:57.3]}
26... Bc6 {[%clk 0:00:28.3]} 27. Qf6+ {[%clk 0:00:47.3]} 27... Kh7 {[%clk
0:00:23.3]} 28. Rd2 {[%clk 0:00:33.4]} 28... Qc5 {[%clk 0:00:20.4]} 29. Nxc5
{[%clk 0:00:31.7]} 29... dxc5 {[%clk 0:00:18.8]} 30. Qc3 {[%clk 0:00:23.2]}
30... Rfe8 {[%clk 0:00:15.7]} 31. Rde2 {[%clk 0:00:21.1]} 31... Rxe2 {[%clk
0:00:14.4]} 32. Rxe2 {[%clk 0:00:20.6]} 32... Nf4 {[%clk 0:00:13.7]} 33. Qc2+
{[%clk 0:00:19.6]} 33... Ng6 {[%clk 0:00:13.4]} 34. Re7 {[%clk 0:00:17.4]} 34...
Rd8 {[%clk 0:00:13.5]} 35. h3 {[%clk 0:00:14.3]} 35... Bd5 {[%clk 0:00:11.1]}
36. Rxc7 {[%clk 0:00:11.9]} 36... Be6 {[%clk 0:00:10.6]} 37. Re7 {[%clk
0:00:09.9]} 37... Rd5 {[%clk 0:00:09.6]} 38. Qe4 {[%clk 0:00:07.4]} 38... Rf5
{[%clk 0:00:08.4]} 39. Qxb7 {[%clk 0:00:05.9]} 39... a5 {[%clk 0:00:07.3]} 40.
Rxe6 {[%clk 0:00:04.6]} 40... Kg7 {[%clk 0:00:05.4]} 41. Rxg6+ {[%clk
0:00:02.8]} 41... Kxg6 {[%clk 0:00:03.3]} 42. Qc6+ {[%clk 0:00:03.2]} 42... f6
{[%clk 0:00:02.5]} 43. Qb5 {[%clk 0:00:03.5]} 43... Rf2 {[%clk 0:00:01.4]} 44.
Qxa5 {[%clk 0:00:03.8]} 1-0

[Event "Betsys MČR v online bleskovém šachu 2021"]
[Site "Chess.com"]
[Date "2021.04.17"]
[Round "10"]
[White "KJ327NR"]
[Black "TheRigos"]
[Result "1-0"]
[WhiteElo "2365"]
[BlackElo "2548"]
[TimeControl "180+1"]
[EndTime "10:41:24 PDT"]
[Termination "Uživatel KJ327NR zvítězil po vzdání soupeře"]

1. e4 {[%clk 0:03:00.9]} 1... f5 {[%clk 0:03:00.1]} 2. exf5 {[%clk 0:02:58]}
2... Nf6 {[%clk 0:03:00.5]} 3. d4 {[%clk 0:02:57]} 3... d5 {[%clk 0:03:01]} 4.
Bd3 {[%clk 0:02:56]} 4... c5 {[%clk 0:03:01.6]} 5. dxc5 {[%clk 0:02:52.2]} 5...
e5 {[%clk 0:03:01.9]} 6. fxe6 {[%clk 0:02:50.9]} 6... Bxc5 {[%clk 0:03:02.5]} 7.
Nf3 {[%clk 0:02:48.3]} 7... O-O {[%clk 0:03:02.8]} 8. O-O {[%clk 0:02:45.8]}
8... Bxe6 {[%clk 0:03:03.5]} 9. h3 {[%clk 0:02:44.9]} 9... Kh8 {[%clk
0:03:03.5]} 10. Bg5 {[%clk 0:02:42.5]} 10... Nc6 {[%clk 0:03:03.4]} 11. c3
{[%clk 0:02:40.3]} 11... Qd7 {[%clk 0:03:03.1]} 12. Bxf6 {[%clk 0:02:24.2]}
12... Rxf6 {[%clk 0:03:02.5]} 13. Ng5 {[%clk 0:01:54.9]} 13... Bg8 {[%clk
0:02:58.7]} 14. Qh5 {[%clk 0:01:47.3]} 14... Raf8 {[%clk 0:02:45.7]} 15. Nxh7
{[%clk 0:01:39.4]} 15... Rh6 {[%clk 0:02:14.5]} 16. Nxf8 {[%clk 0:01:37.4]}
16... Bxf8 {[%clk 0:02:10.9]} 17. Qf5 {[%clk 0:01:33.1]} 17... Qe8 {[%clk
0:01:55.5]} 18. Nd2 {[%clk 0:01:27.7]} 18... Be6 {[%clk 0:01:50.2]} 19. Rae1
{[%clk 0:01:19.3]} 19... Bd6 {[%clk 0:01:50.2]} 20. Nf3 {[%clk 0:00:58.2]} 20...
Qd7 {[%clk 0:01:44.3]} 21. Rxe6 {[%clk 0:00:48.2]} 21... Qxe6 {[%clk 0:01:45.2]}
22. Qxe6 {[%clk 0:00:44.3]} 22... Rxe6 {[%clk 0:01:45.3]} 23. Ng5 {[%clk
0:00:42.6]} 23... Rf6 {[%clk 0:01:44.4]} 24. Nf3 {[%clk 0:00:27.5]} 24... g6
{[%clk 0:01:31.6]} 25. Re1 {[%clk 0:00:26.7]} 25... Kg7 {[%clk 0:01:31.6]} 26.
Re8 {[%clk 0:00:25.3]} 26... Bc5 {[%clk 0:01:25.9]} 27. Rc8 {[%clk 0:00:21.8]}
27... Bb6 {[%clk 0:01:25.2]} 28. c4 {[%clk 0:00:18.6]} 28... dxc4 {[%clk
0:01:09]} 29. Bxc4 {[%clk 0:00:19.5]} 29... Rd6 {[%clk 0:01:09]} 30. Rg8+ {[%clk
0:00:18]} 30... Kf6 {[%clk 0:01:05.6]} 31. Rf8+ {[%clk 0:00:17.9]} 31... Kg7
{[%clk 0:01:05.8]} 32. Rg8+ {[%clk 0:00:17.8]} 32... Kf6 {[%clk 0:01:05.5]} 33.
g3 {[%clk 0:00:17.4]} 33... Rd1+ {[%clk 0:01:03.6]} 34. Kg2 {[%clk 0:00:17.4]}
34... Rb1 {[%clk 0:01:02.9]} 35. Rf8+ {[%clk 0:00:17.5]} 35... Kg7 {[%clk
0:01:00.9]} 36. Rf7+ {[%clk 0:00:17.2]} 36... Kh6 {[%clk 0:00:53]} 37. g4 {[%clk
0:00:17]} 37... g5 {[%clk 0:00:46.6]} 38. h4 {[%clk 0:00:16.5]} 38... Rxb2
{[%clk 0:00:27.9]} 39. hxg5+ {[%clk 0:00:16.2]} 39... Kg6 {[%clk 0:00:28]} 40.
Rf6+ {[%clk 0:00:15.9]} 40... Kg7 {[%clk 0:00:28.4]} 41. Rf7+ {[%clk 0:00:15.6]}
41... Kg6 {[%clk 0:00:28.6]} 42. Rf6+ {[%clk 0:00:13.1]} 42... Kg7 {[%clk
0:00:28.6]} 43. Nh4 {[%clk 0:00:13.4]} 43... Nd4 {[%clk 0:00:16.8]} 44. Nf5+
{[%clk 0:00:11]} 44... Nxf5 {[%clk 0:00:16.2]} 45. Rxf5 {[%clk 0:00:11.9]} 45...
Rd2 {[%clk 0:00:09.1]} 46. Bb3 {[%clk 0:00:11.6]} 46... Rd4 {[%clk 0:00:08.3]}
47. Kg3 {[%clk 0:00:11]} 47... Bc7+ {[%clk 0:00:08.4]} 48. f4 {[%clk 0:00:10.8]}
48... Rd3+ {[%clk 0:00:08.7]} 49. Kh4 {[%clk 0:00:10.7]} 49... Rf3 {[%clk
0:00:09.2]} 50. Rf7+ {[%clk 0:00:10.4]} 50... Kh8 {[%clk 0:00:08.9]} 51. Rxc7
{[%clk 0:00:10.3]} 51... Rxf4 {[%clk 0:00:08.9]} 52. g6 {[%clk 0:00:09.9]} 1-0

[Event "Betsys MČR v online bleskovém šachu 2021"]
[Site "Chess.com"]
[Date "2021.04.17"]
[Round "10"]
[White "Zelezny1984"]
[Black "rolkento"]
[Result "0-1"]
[WhiteElo "2062"]
[BlackElo "2243"]
[TimeControl "180+1"]
[EndTime "10:41:24 PDT"]
[Termination "Uživatel rolkento zvítězil na čas"]

1. e4 {[%clk 0:03:00.9]} 1... e6 {[%clk 0:03:00.1]} 2. d4 {[%clk 0:02:59.8]}
2... d5 {[%clk 0:03:00.6]} 3. Nd2 {[%clk 0:03:00]} 3... Nf6 {[%clk 0:02:59]} 4.
e5 {[%clk 0:03:00]} 4... Nfd7 {[%clk 0:02:59.1]} 5. Ngf3 {[%clk 0:03:00.1]} 5...
c5 {[%clk 0:02:59.6]} 6. c3 {[%clk 0:03:00.5]} 6... Nc6 {[%clk 0:03:00]} 7. Bd3
{[%clk 0:03:00.2]} 7... a6 {[%clk 0:03:00]} 8. O-O {[%clk 0:02:57.8]} 8... b5
{[%clk 0:03:00.4]} 9. Re1 {[%clk 0:02:48.8]} 9... Qb6 {[%clk 0:02:59]} 10. dxc5
{[%clk 0:02:29.9]} 10... Bxc5 {[%clk 0:02:55.3]} 11. Re2 {[%clk 0:02:29.7]}
11... a5 {[%clk 0:02:53]} 12. Nb3 {[%clk 0:02:27.5]} 12... Be7 {[%clk
0:02:45.7]} 13. Nbd4 {[%clk 0:02:20.3]} 13... Ba6 {[%clk 0:02:39.4]} 14. Qb3
{[%clk 0:02:04.4]} 14... b4 {[%clk 0:02:34.7]} 15. Bxa6 {[%clk 0:02:02.1]} 15...
Qxa6 {[%clk 0:02:25.9]} 16. Qd1 {[%clk 0:01:46.7]} 16... O-O {[%clk 0:02:17.7]}
17. Bf4 {[%clk 0:01:36.7]} 17... bxc3 {[%clk 0:02:03.9]} 18. bxc3 {[%clk
0:01:37.6]} 18... Rfc8 {[%clk 0:02:01.8]} 19. Rb1 {[%clk 0:01:23.5]} 19... Rab8
{[%clk 0:01:59.2]} 20. Reb2 {[%clk 0:01:14.3]} 20... h6 {[%clk 0:01:53.2]} 21.
h3 {[%clk 0:01:14.4]} 21... Rxb2 {[%clk 0:01:49.5]} 22. Rxb2 {[%clk 0:01:15.3]}
22... Nxd4 {[%clk 0:01:49.6]} 23. cxd4 {[%clk 0:01:09.9]} 23... Rb8 {[%clk
0:01:42.5]} 24. Rxb8+ {[%clk 0:01:07.5]} 24... Nxb8 {[%clk 0:01:43.4]} 25. Qa4
{[%clk 0:00:57]} 25... Nc6 {[%clk 0:01:33.6]} 26. Bd2 {[%clk 0:00:57.4]} 26...
Qb6 {[%clk 0:01:30.6]} 27. Bc3 {[%clk 0:00:32.5]} 27... Bb4 {[%clk 0:01:10.9]}
28. Bxb4 {[%clk 0:00:30.3]} 28... axb4 {[%clk 0:01:09.7]} 29. Kh2 {[%clk
0:00:23.3]} 29... Kh7 {[%clk 0:01:06.6]} 30. Qd1 {[%clk 0:00:20.5]} 30... Qb5
{[%clk 0:01:00.2]} 31. Qc2+ {[%clk 0:00:20]} 31... Kg8 {[%clk 0:00:59.2]} 32.
Qc5 {[%clk 0:00:19]} 32... Qxc5 {[%clk 0:00:57.6]} 33. dxc5 {[%clk 0:00:19.9]}
33... Kf8 {[%clk 0:00:57.4]} 34. Kg3 {[%clk 0:00:20.4]} 34... Ke7 {[%clk
0:00:57.4]} 35. Kf4 {[%clk 0:00:20.9]} 35... Kd7 {[%clk 0:00:42.8]} 36. Ke3
{[%clk 0:00:18.5]} 36... f6 {[%clk 0:00:38.7]} 37. exf6 {[%clk 0:00:17.8]} 37...
gxf6 {[%clk 0:00:39.6]} 38. Nd4 {[%clk 0:00:12.4]} 38... e5 {[%clk 0:00:36.3]}
39. Nf5 {[%clk 0:00:10.7]} 39... Ke6 {[%clk 0:00:27.6]} 40. Nxh6 {[%clk
0:00:10.8]} 40... Nd4 {[%clk 0:00:26.2]} 41. Kd3 {[%clk 0:00:07.8]} 41... Nb5
{[%clk 0:00:21.3]} 42. Ng4 {[%clk 0:00:05]} 42... e4+ {[%clk 0:00:19.9]} 43. Kc2
{[%clk 0:00:03.7]} 43... d4 {[%clk 0:00:18]} 44. Kb3 {[%clk 0:00:02.5]} 44...
Kd5 {[%clk 0:00:14.5]} 45. Kxb4 {[%clk 0:00:01.9]} 45... Nc3 {[%clk 0:00:08.1]}
46. a4 {[%clk 0:00:02.2]} 46... Na2+ {[%clk 0:00:05.5]} 47. Kb5 {[%clk
0:00:02.3]} 47... d3 {[%clk 0:00:04.4]} 0-1

[Event "Betsys MČR v online bleskovém šachu 2021"]
[Site "Chess.com"]
[Date "2021.04.17"]
[Round "10"]
[White "ritchi12"]
[Black "TomSedmihradsky"]
[Result "1-0"]
[WhiteElo "1114"]
[BlackElo "1390"]
[TimeControl "180+1"]
[EndTime "10:41:24 PDT"]
[Termination "Uživatel ritchi12 zvítězil na čas"]

1. e4 {[%clk 0:03:00.9]} 1... e6 {[%clk 0:02:59.4]} 2. Nf3 {[%clk 0:03:00.8]}
2... d5 {[%clk 0:02:58.5]} 3. exd5 {[%clk 0:03:00.2]} 3... exd5 {[%clk
0:02:58.3]} 4. Qe2+ {[%clk 0:02:59.8]} 4... Be6 {[%clk 0:02:58.2]} 5. Qb5+
{[%clk 0:02:53.8]} 5... Nc6 {[%clk 0:02:31.2]} 6. Qxb7 {[%clk 0:02:42.4]} 6...
Nge7 {[%clk 0:02:22.9]} 7. Qb5 {[%clk 0:02:38.9]} 7... Rb8 {[%clk 0:02:19.7]} 8.
Qd3 {[%clk 0:02:29.2]} 8... Nb4 {[%clk 0:02:10.6]} 9. Qe3 {[%clk 0:02:18.4]}
9... Nxc2+ {[%clk 0:02:08.2]} 10. Ke2 {[%clk 0:02:17]} 10... Nxe3 {[%clk
0:02:06.7]} 11. fxe3 {[%clk 0:02:17.2]} 11... Qd6 {[%clk 0:01:59.8]} 12. Kf2
{[%clk 0:02:17]} 12... Rxb2 {[%clk 0:01:56]} 13. Bxb2 {[%clk 0:02:14.5]} 13...
Qb6 {[%clk 0:01:48.4]} 14. Bd4 {[%clk 0:02:09]} 14... Qb4 {[%clk 0:01:34.9]} 15.
Bc3 {[%clk 0:02:05.3]} 15... Qb6 {[%clk 0:01:33.3]} 16. Bd4 {[%clk 0:02:04.4]}
16... c5 {[%clk 0:01:32.8]} 17. Be5 {[%clk 0:01:52.4]} 17... Nc6 {[%clk
0:01:31.6]} 18. Bg3 {[%clk 0:01:45.1]} 18... Bg4 {[%clk 0:01:26.4]} 19. Ne5
{[%clk 0:01:30.9]} 19... Nxe5 {[%clk 0:01:24.1]} 20. Bxe5 {[%clk 0:01:30.4]}
20... f6 {[%clk 0:01:20.4]} 21. Bf4 {[%clk 0:01:26.3]} 21... Qb2 {[%clk
0:01:18.1]} 22. Bb5+ {[%clk 0:01:18.2]} 22... Qxb5 {[%clk 0:01:00.8]} 23. Nc3
{[%clk 0:01:18.2]} 23... Qa6 {[%clk 0:00:50.3]} 24. Nxd5 {[%clk 0:01:17.9]}
24... g5 {[%clk 0:00:47.4]} 25. Nc7+ {[%clk 0:01:15.9]} 25... Kd7 {[%clk
0:00:45.1]} 26. Nxa6 {[%clk 0:01:16]} 26... Kc6 {[%clk 0:00:43.8]} 27. Bc7
{[%clk 0:01:07.4]} 27... h5 {[%clk 0:00:34.3]} 28. Rab1 {[%clk 0:01:03.2]} 28...
c4 {[%clk 0:00:30.7]} 29. Rhc1 {[%clk 0:00:56.7]} 29... Be6 {[%clk 0:00:19.3]}
30. a4 {[%clk 0:00:52.9]} 30... Rh7 {[%clk 0:00:17.8]} 31. Nb4+ {[%clk
0:00:50.4]} 31... Kxc7 {[%clk 0:00:16.2]} 32. Na6+ {[%clk 0:00:47.9]} 32... Kc8
{[%clk 0:00:14.3]} 33. h3 {[%clk 0:00:41.1]} 33... Rd7 {[%clk 0:00:12.5]} 34.
Rd1 {[%clk 0:00:37.1]} 34... Rd3 {[%clk 0:00:10.4]} 35. Nc5 {[%clk 0:00:34.9]}
35... Rd6 {[%clk 0:00:09.2]} 36. Ne4 {[%clk 0:00:29.9]} 36... Rd3 {[%clk
0:00:06.6]} 37. Nxf6 {[%clk 0:00:28]} 37... Bg7 {[%clk 0:00:05.3]} 38. Nxh5
{[%clk 0:00:27.2]} 38... Be5 {[%clk 0:00:03.1]} 39. Ng3 {[%clk 0:00:22.6]} 39...
Bxg3+ {[%clk 0:00:02.3]} 40. Kxg3 {[%clk 0:00:22.5]} 40... Rd8 {[%clk
0:00:02.2]} 41. Kf3 {[%clk 0:00:18.2]} 41... Rf8+ {[%clk 0:00:03.1]} 42. Ke2
{[%clk 0:00:18.2]} 42... Rf7 {[%clk 0:00:02]} 43. Rf1 {[%clk 0:00:17.7]} 43...
Re7 {[%clk 0:00:01.6]} 44. Rf8+ {[%clk 0:00:15.5]} 44... Kc7 {[%clk 0:00:01.7]}
45. Rff1 {[%clk 0:00:15.1]} 45... Rd7 {[%clk 0:00:01.4]} 46. Rfd1 {[%clk
0:00:12.3]} 46... c3 {[%clk 0:00:01.2]} 47. dxc3 {[%clk 0:00:11.6]} 47... Bc4+
{[%clk 0:00:01.2]} 48. Kf3 {[%clk 0:00:10]} 1-0

[Event "Betsys MČR v online bleskovém šachu 2021"]
[Site "Chess.com"]
[Date "2021.04.17"]
[Round "10"]
[White "RomanHlavicka"]
[Black "starypomalymuz"]
[Result "0-1"]
[WhiteElo "1533"]
[BlackElo "1762"]
[TimeControl "180+1"]
[EndTime "10:41:26 PDT"]
[Termination "Uživatel starypomalymuz zvítězil na čas"]

1. e4 {[%clk 0:03:00.9]} 1... e6 {[%clk 0:02:59.2]} 2. d4 {[%clk 0:02:59.2]}
2... a6 {[%clk 0:02:59.6]} 3. Nf3 {[%clk 0:02:58.3]} 3... b5 {[%clk 0:02:59.5]}
4. Nc3 {[%clk 0:02:55.3]} 4... Bb7 {[%clk 0:02:59.1]} 5. Bd3 {[%clk 0:02:54.2]}
5... Nf6 {[%clk 0:02:57.7]} 6. Bg5 {[%clk 0:02:50.9]} 6... Be7 {[%clk
0:02:56.8]} 7. e5 {[%clk 0:02:50.4]} 7... Nd5 {[%clk 0:02:55.7]} 8. Bxe7 {[%clk
0:02:50.3]} 8... Qxe7 {[%clk 0:02:56.2]} 9. Nxd5 {[%clk 0:02:44.2]} 9... Bxd5
{[%clk 0:02:54.8]} 10. O-O {[%clk 0:02:43.1]} 10... c5 {[%clk 0:02:51.1]} 11.
dxc5 {[%clk 0:02:39.6]} 11... Qxc5 {[%clk 0:02:49]} 12. Qe2 {[%clk 0:02:34.5]}
12... Nc6 {[%clk 0:02:47]} 13. c3 {[%clk 0:02:28.3]} 13... h6 {[%clk 0:02:39.5]}
14. Rfe1 {[%clk 0:02:18.9]} 14... O-O {[%clk 0:02:31.1]} 15. Nd2 {[%clk
0:02:07.9]} 15... Ne7 {[%clk 0:02:21.7]} 16. Ne4 {[%clk 0:02:03.9]} 16... Bxe4
{[%clk 0:02:16.5]} 17. Qxe4 {[%clk 0:01:53.9]} 17... Ng6 {[%clk 0:01:47.3]} 18.
Re3 {[%clk 0:01:47.7]} 18... Qc6 {[%clk 0:01:46.1]} 19. Qg4 {[%clk 0:01:35.2]}
19... d5 {[%clk 0:01:20.4]} 20. Bxg6 {[%clk 0:01:32]} 20... fxg6 {[%clk
0:01:19.5]} 21. Qxg6 {[%clk 0:01:31.5]} 21... Rf5 {[%clk 0:01:14]} 22. Rae1
{[%clk 0:01:19.9]} 22... Raf8 {[%clk 0:01:13.2]} 23. f3 {[%clk 0:01:14.6]} 23...
Qb6 {[%clk 0:01:11]} 24. Kh1 {[%clk 0:01:11.5]} 24... Rg5 {[%clk 0:01:10.3]} 25.
Qd3 {[%clk 0:01:06.1]} 25... a5 {[%clk 0:00:52.4]} 26. Qd4 {[%clk 0:00:51.4]}
26... Qc6 {[%clk 0:00:47.7]} 27. f4 {[%clk 0:00:46.3]} 27... Rgf5 {[%clk
0:00:45.5]} 28. g3 {[%clk 0:00:44.7]} 28... b4 {[%clk 0:00:42.6]} 29. a3 {[%clk
0:00:39.9]} 29... bxc3 {[%clk 0:00:40.6]} 30. Rxc3 {[%clk 0:00:39]} 30... Qb7
{[%clk 0:00:39.5]} 31. Qd2 {[%clk 0:00:32.2]} 31... d4+ {[%clk 0:00:37.6]} 32.
Qg2 {[%clk 0:00:21.3]} 32... Qxg2+ {[%clk 0:00:36.4]} 33. Kxg2 {[%clk 0:00:21]}
33... dxc3 {[%clk 0:00:36.8]} 34. bxc3 {[%clk 0:00:21.3]} 34... Rc8 {[%clk
0:00:36.5]} 35. Rc1 {[%clk 0:00:20.3]} 35... Rf7 {[%clk 0:00:35.6]} 36. c4
{[%clk 0:00:20.2]} 36... Rfc7 {[%clk 0:00:36.1]} 37. Rd1 {[%clk 0:00:18.4]}
37... Rxc4 {[%clk 0:00:34.7]} 38. Rd6 {[%clk 0:00:18.4]} 38... R4c6 {[%clk
0:00:33.7]} 39. Rd7 {[%clk 0:00:17.9]} 39... R8c7 {[%clk 0:00:32.6]} 40. Rd8+
{[%clk 0:00:17.6]} 40... Kf7 {[%clk 0:00:33.1]} 41. Ra8 {[%clk 0:00:17.6]} 41...
Rc5 {[%clk 0:00:32.3]} 42. Ra6 {[%clk 0:00:17.3]} 42... Rc2+ {[%clk 0:00:27.8]}
43. Kh3 {[%clk 0:00:16.6]} 43... R2c5 {[%clk 0:00:25.5]} 44. Ra8 {[%clk
0:00:15.7]} 44... Kg6 {[%clk 0:00:24.7]} 45. Ra6 {[%clk 0:00:14.5]} 45... R7c6
{[%clk 0:00:23]} 46. Ra7 {[%clk 0:00:13.4]} 46... h5 {[%clk 0:00:22.7]} 47. Kh4
{[%clk 0:00:11]} 47... Kh6 {[%clk 0:00:22.4]} 48. Ra8 {[%clk 0:00:09.9]} 48...
Rc2 {[%clk 0:00:19.4]} 49. Rh8+ {[%clk 0:00:08.2]} 49... Kg6 {[%clk 0:00:19.8]}
50. h3 {[%clk 0:00:07.6]} 50... R2c3 {[%clk 0:00:17.9]} 51. Rxh5 {[%clk
0:00:06.9]} 51... Rxa3 {[%clk 0:00:17.7]} 52. Rg5+ {[%clk 0:00:05.5]} 52... Kf7
{[%clk 0:00:17.8]} 53. Rh5 {[%clk 0:00:03.2]} 53... Rcc3 {[%clk 0:00:16.9]} 0-1

[Event "Betsys MČR v online bleskovém šachu 2021"]
[Site "Chess.com"]
[Date "2021.04.17"]
[Round "10"]
[White "catanist19"]
[Black "g4g5g4g5"]
[Result "0-1"]
[WhiteElo "1740"]
[BlackElo "2003"]
[TimeControl "180+1"]
[EndTime "10:41:30 PDT"]
[Termination "Uživatel g4g5g4g5 zvítězil na čas"]

1. d4 {[%clk 0:02:58.8]} 1... Nf6 {[%clk 0:02:59.4]} 2. c4 {[%clk 0:02:58.2]}
2... e6 {[%clk 0:02:59.6]} 3. Nc3 {[%clk 0:02:57.7]} 3... d5 {[%clk 0:02:59.3]}
4. e3 {[%clk 0:02:57.5]} 4... Be7 {[%clk 0:02:58.7]} 5. Nf3 {[%clk 0:02:57.4]}
5... O-O {[%clk 0:02:58.5]} 6. Bd3 {[%clk 0:02:57]} 6... a6 {[%clk 0:02:58.3]}
7. O-O {[%clk 0:02:56.4]} 7... dxc4 {[%clk 0:02:58.4]} 8. Bxc4 {[%clk
0:02:54.5]} 8... b5 {[%clk 0:02:58.5]} 9. Bd3 {[%clk 0:02:54.4]} 9... Bb7 {[%clk
0:02:58.7]} 10. Qe2 {[%clk 0:02:52.6]} 10... Nbd7 {[%clk 0:02:58.1]} 11. e4
{[%clk 0:02:51.4]} 11... c5 {[%clk 0:02:55.2]} 12. e5 {[%clk 0:02:49.7]} 12...
Nd5 {[%clk 0:02:54.8]} 13. Qe4 {[%clk 0:02:39.3]} 13... g6 {[%clk 0:02:54.6]}
14. Nxd5 {[%clk 0:02:31.3]} 14... Bxd5 {[%clk 0:02:53.4]} 15. Qg4 {[%clk
0:02:27.9]} 15... Bxf3 {[%clk 0:02:43.9]} 16. gxf3 {[%clk 0:02:24.5]} 16... cxd4
{[%clk 0:02:42.6]} 17. Qxd4 {[%clk 0:02:15.9]} 17... Nc5 {[%clk 0:02:38.9]} 18.
Qxd8 {[%clk 0:02:09.9]} 18... Rfxd8 {[%clk 0:02:38.9]} 19. Be2 {[%clk
0:02:05.3]} 19... Rac8 {[%clk 0:02:35.7]} 20. Be3 {[%clk 0:02:00.7]} 20... Na4
{[%clk 0:02:29.7]} 21. Rac1 {[%clk 0:01:47]} 21... Nxb2 {[%clk 0:02:22.8]} 22.
Rxc8 {[%clk 0:01:44.7]} 22... Rxc8 {[%clk 0:02:22.2]} 23. Bd4 {[%clk 0:01:37.3]}
23... Na4 {[%clk 0:02:16.2]} 24. Bd3 {[%clk 0:01:31]} 24... Nc3 {[%clk
0:02:11.3]} 25. Kg2 {[%clk 0:01:19.6]} 25... Nd5 {[%clk 0:02:08.1]} 26. Be4
{[%clk 0:01:08.5]} 26... Nf4+ {[%clk 0:01:58.5]} 27. Kh1 {[%clk 0:01:02.7]}
27... Ba3 {[%clk 0:01:30.5]} 28. Rd1 {[%clk 0:00:52.8]} 28... Kg7 {[%clk
0:01:24.8]} 29. Bb7 {[%clk 0:00:47.8]} 29... Rd8 {[%clk 0:01:18.8]} 30. Rd2
{[%clk 0:00:36.9]} 30... Bc5 {[%clk 0:01:00]} 31. Be3 {[%clk 0:00:28.7]} 31...
Rxd2 {[%clk 0:00:57.7]} 32. Bxd2 {[%clk 0:00:27.4]} 32... Nd3 {[%clk 0:00:57.8]}
33. Bxa6 {[%clk 0:00:22.8]} 33... Nxf2+ {[%clk 0:00:56.3]} 34. Kg2 {[%clk
0:00:21.1]} 34... b4 {[%clk 0:00:45.5]} 35. Bxb4 {[%clk 0:00:19.5]} 35... Bxb4
{[%clk 0:00:38.2]} 36. Kxf2 {[%clk 0:00:18.9]} 36... g5 {[%clk 0:00:34.9]} 37.
Ke3 {[%clk 0:00:16.4]} 37... h5 {[%clk 0:00:30.5]} 38. Ke4 {[%clk 0:00:12.2]}
38... Kh6 {[%clk 0:00:26.6]} 39. Bb5 {[%clk 0:00:10]} 39... Bc3 {[%clk
0:00:16.8]} 40. Be8 {[%clk 0:00:09.1]} 40... f5+ {[%clk 0:00:16.8]} 41. exf6
{[%clk 0:00:08.2]} 41... Bxf6 {[%clk 0:00:16.5]} 42. a4 {[%clk 0:00:07.1]} 42...
Kg7 {[%clk 0:00:12.3]} 43. a5 {[%clk 0:00:07]} 43... Bd8 {[%clk 0:00:07]} 44. a6
{[%clk 0:00:05.3]} 44... Bb6 {[%clk 0:00:07]} 45. Bxh5 {[%clk 0:00:04]} 45...
Kf6 {[%clk 0:00:07]} 46. Bg4 {[%clk 0:00:03.6]} 46... Ba7 {[%clk 0:00:06.6]} 47.
Kd3 {[%clk 0:00:02.1]} 47... Bb6 {[%clk 0:00:06.7]} 48. Kc4 {[%clk 0:00:01.7]}
48... Ke5 {[%clk 0:00:03.3]} 0-1